bitfinex/quotes_ETHUSD_20250721
["timestamp","ask_amount","ask_price","bid_price","bid_amount"]
[1753098048418,2.61568907,3823.1,3822.6,0.4743]
[1753098048596,4.197,3822.9,3822.6,0.4743]
[1753098049805,6.8128174,3822.9,3822.6,0.4743]
[1753098050026,4.197,3822.9,3822.6,0.4743]
[1753098050203,6.81281826,3822.9,3822.6,0.4743]
[1753098050408,2.61588563,3822.8,3822.6,0.4743]
[1753098050607,2.61596279,3822.7,3822.4,0.001]
[1753098050803,0.02613849,3822.8,3822.4,0.001]
[1753098050804,0.02613849,3822.6,3822.4,0.001]
[1753098051004,2.61608894,3822.5,3822.4,0.001]
[1753098051210,6.81208894,3822.5,3822.4,0.001]
[1753098053709,4.196,3822.5,3822.4,0.001]
[1753098053907,4.22213849,3822.5,3822.4,0.001]
[1753098054120,6.83822743,3822.5,3822.4,0.001]
[1753098054290,6.81208894,3822.5,3822.4,0.001]
[1753098054691,4.196,3822.5,3822.4,0.001]
[1753098054910,0.02613849,3822.7,3822.4,0.4753]
[1753098055118,4.194,3822.6,3822.4,0.4753]
[1753098055313,4.194,3822.6,3822.4,0.001]
[1753098055627,4.194,3822.6,3822.5,0.4743]
[1753098056500,4.194,3822.6,3822.4,0.001]
[1753098056827,2.64222743,3822.5,3822.4,0.001]
[1753098057534,4.22013849,3822.5,3822.4,0.001]
[1753098058226,6.83622743,3822.5,3822.4,0.001]
[1753098058391,4.194,3822.5,3822.4,0.001]
[1753098058583,6.06,3823.2,3822.4,0.001]
[1753098058789,7.61758233,3823.1,3822.4,0.4753]
[1753098059022,2.61586285,3822.9,3822.4,0.4753]
[1753098059224,6.83502614,3822.8,3822.4,0.001]
[1753098059390,6.8089004,3822.8,3822.4,0.001]
[1753098060098,2.61596328,3822.7,3822.4,0.001]
[1753098060300,2.61608894,3822.5,3822.4,0.001]
[1753098060624,2.64222743,3822.5,3822.4,0.001]
[1753098061399,12.81758278,3822.5,3822.4,0.001]
[1753098061722,12.79144429,3822.5,3822.4,0.001]
[1753098061923,3.16615738,3822.4,3822.3,0.001]
[1753098062126,3.16636273,3822.1,3822.0,1e-08]
[1753098062423,8.14590122,3822.1,3822.0,1e-08]
[1753098062621,11.55146273,3822.1,3822.0,1e-08]
[1753098063800,14.61146273,3822.1,3822.0,1e-08]
[1753098063996,6.92753657,3821.7,3821.6,0.001]
[1753098064307,23.16369192,3821.7,3821.6,0.001]
[1753098064490,23.59539192,3821.7,3821.6,0.001]
[1753098065533,19.40339192,3821.7,3821.6,0.001]
[1753098065700,23.59539192,3821.7,3821.6,0.001]
[1753098066202,21.81202849,3821.7,3821.6,0.001]
[1753098066438,17.62002849,3821.7,3821.6,0.001]
[1753098066597,21.81202849,3821.7,3821.6,0.001]
[1753098068205,22.36202849,3821.7,3821.6,0.001]
[1753098068405,22.36202849,3821.7,3821.5,0.001]
[1753098068406,6.99560504,3821.6,3821.5,0.001]
[1753098068723,6.99560504,3821.6,3821.5,1e-08]
[1753098068724,37.42730504,3821.6,3821.5,1e-08]
[1753098068936,4.3789,3821.4,3821.2,1e-08]
[1753098069249,41.17324896,3821.3,3821.2,1e-08]
[1753098069554,41.57881047,3821.3,3821.2,1e-08]
[1753098069920,11.57881047,3821.3,3821.2,1e-08]
[1753098070135,14.63881047,3821.3,3821.2,1e-08]
[1753098071644,6.92821593,3821.0,3820.9,1e-08]
[1753098071941,20.10337128,3821.0,3820.9,1e-08]
[1753098072145,50.53507128,3821.0,3820.9,1e-08]
[1753098072850,50.53507128,3821.0,3820.6,1e-08]
[1753098072851,3.99632143,3820.7,3820.6,1e-08]
[1753098073015,41.21345992,3820.7,3820.6,1e-08]
[1753098073213,41.18732143,3820.7,3820.6,1e-08]
[1753098073518,41.61902143,3820.7,3820.6,1e-08]
[1753098073857,2.61745844,3820.5,3820.4,1e-08]
[1753098074043,18.81875228,3820.5,3820.4,1e-08]
[1753098074216,18.79261379,3820.5,3820.4,1e-08]
[1753098074412,5.61745844,3820.5,3820.4,1e-08]
[1753098074616,10.38459693,3820.5,3820.4,1e-08]
[1753098074842,10.35845844,3820.5,3820.4,1e-08]
[1753098075062,6.16745844,3820.5,3820.4,1e-08]
[1753098075317,6.16745844,3820.5,3819.5,0.001]
[1753098075318,3.57613849,3820.5,3819.5,0.001]
[1753098075522,0.7661,3819.5,3818.7,0.4743]
[1753098075744,2.61848786,3819.0,3818.7,1.2943]
[1753098076016,4.21713849,3818.9,3818.8,0.4743]
[1753098076415,4.191,3818.9,3818.8,0.4743]
[1753098076844,6.83569357,3818.9,3818.8,0.4743]
[1753098077053,4.191,3818.9,3818.4,1.2351]
[1753098077254,2.61882938,3818.5,3818.4,0.7691]
[1753098077465,0.02613849,3818.5,3818.4,1.2351]
[1753098077754,2.61882938,3818.5,3818.4,1.2351]
[1753098078121,2.64496787,3818.5,3818.4,1.2351]
[1753098078316,0.02613849,3818.5,3818.4,1.2351]
[1753098078552,4.21613849,3818.6,3818.4,1.2351]
[1753098078861,4.21613849,3818.6,3818.5,0.466]
[1753098079033,0.02613849,3818.8,3818.5,0.466]
[1753098079360,0.02613849,3818.8,3818.4,0.7691]
[1753098079660,2.61882938,3818.5,3818.4,1.2351]
[1753098079872,2.64496787,3818.5,3818.4,0.466]
[1753098080539,2.61903514,3818.2,3818.1,0.7596]
[1753098080865,0.02613849,3818.4,3818.1,1.2256]
[1753098081264,0.02613849,3818.4,3818.2,0.466]
[1753098081472,4.19,3818.5,3818.2,0.466]
[1753098081679,0.02613849,3818.8,3818.6,2.61873183]
[1753098081860,4.19,3819.5,3818.7,0.8205]
[1753098082029,4.19,3819.7,3819.1,2.6183696]
[1753098082228,0.02613849,3819.6,3819.2,3.90992848]
[1753098082465,0.02613849,3819.6,3819.3,0.466]
[1753098082668,0.01341225,3819.9,3819.6,2.61805582]
[1753098082836,0.01341225,3819.9,3819.5,2.61813526]
[1753098083173,0.03955074,3819.9,3819.5,3.08413526]
[1753098083479,0.03955074,3819.9,3819.6,0.466]
[1753098083629,2.63129113,3819.9,3819.5,0.466]
[1753098083834,0.02613849,3819.8,3819.6,0.466]
[1753098084237,0.01341225,3819.9,3818.9,0.466]
[1753098084542,2.61800664,3819.7,3819.0,3.08443903]
[1753098084767,0.02613849,3819.6,3819.1,0.466]
[1753098084966,0.01341225,3819.9,3819.2,3.43944939]
[1753098085171,0.03955074,3819.9,3819.2,3.43944939]
[1753098085383,0.03955074,3819.9,3819.3,2.61826252]
[1753098085584,0.03955074,3819.9,3819.3,3.08426252]
[1753098085881,0.03955074,3819.9,3819.4,0.466]
[1753098086085,0.03955074,3819.9,3819.2,0.8211]
[1753098086377,2.61818941,3819.5,3819.2,0.8211]
[1753098086576,2.64437371,3819.4,3819.2,1.2871]
[1753098087078,0.02613849,3819.4,3819.2,1.2871]
[1753098087234,0.02613849,3819.4,3819.3,0.466]
[1753098087439,0.02613849,3819.5,3819.3,0.466]
[1753098087665,2.64429043,3819.5,3819.3,0.466]
[1753098087867,0.02613849,3819.5,3819.4,0.466]
[1753098088071,2.64422899,3819.6,3818.9,1.2677]
[1753098088268,2.61826887,3819.4,3818.9,1.2677]
[1753098088578,0.02613849,3819.3,3818.9,1.2677]
[1753098088780,0.02613849,3819.3,3819.0,0.466]
[1753098089137,0.02613849,3819.3,3818.9,0.8017]
[1753098089138,0.02613849,3819.3,3819.1,0.466]
[1753098089367,2.64421368,3819.6,3819.1,0.466]
[1753098089751,2.61825778,3819.4,3819.1,0.466]
[1753098089960,0.02613849,3819.3,3819.1,0.466]
[1753098090278,2.61815899,3819.5,3818.9,0.8017]
[1753098090577,0.02613849,3819.4,3819.0,3.08448651]
[1753098090741,0.02613849,3819.4,3819.1,0.466]
[1753098091158,0.02613849,3819.4,3819.2,0.466]
[1753098091359,4.21413849,3819.5,3819.2,3.08433868]
[1753098091558,4.21413849,3819.5,3819.2,2.61833868]
[1753098091756,0.02613849,3819.5,3819.3,0.466]
[1753098091968,0.02613849,3819.5,3819.4,0.466]
[1753098092557,0.002,3819.8,3819.5,2.61814373]
[1753098092783,0.02813849,3819.8,3819.5,2.61814373]
[1753098093086,0.02813849,3819.8,3819.6,0.466]
[1753098093442,0.02813849,3819.8,3819.7,0.466]
[1753098093642,0.02813849,3819.8,3819.3,2.61826646]
[1753098093892,0.02813849,3819.8,3819.5,0.466]
[1753098094197,0.02813849,3819.8,3819.6,0.7648]
[1753098094487,0.02813849,3819.8,3819.6,1.2308]
[1753098094676,0.02813849,3819.8,3819.7,0.466]
[1753098095112,0.7952,3819.7,3818.8,0.001]
[1753098095380,2.61846625,3819.1,3818.8,0.467]
[1753098095677,2.6446295,3819.0,3818.9,0.466]
[1753098095872,0.02613849,3819.0,3818.9,0.466]
[1753098096074,2.644625,3819.0,3818.9,0.466]
[1753098096497,0.02613849,3819.0,3818.9,0.466]
[1753098096847,2.64446211,3819.3,3818.9,0.466]
[1753098097364,2.61846557,3819.1,3818.9,0.466]
[1753098097565,0.02613849,3819.0,3818.9,0.466]
[1753098098449,2.64449793,3819.2,3818.9,0.466]
[1753098098661,0.02613849,3819.2,3819.0,0.466]
[1753098098896,4.21313849,3819.4,3819.1,0.466]
[1753098099104,4.21313849,3819.4,3819.2,0.466]
[1753098099392,0.02613849,3819.4,3819.3,0.466]
[1753098099605,0.02613849,3819.5,3819.3,0.466]
[1753098099756,0.02613849,3819.5,3819.4,0.466]
[1753098099962,2.64428222,3819.5,3819.4,0.466]
[1753098100791,6.83028222,3819.5,3819.4,0.466]
[1753098101095,17.11804993,3819.7,3819.4,0.466]
[1753098101096,2.61994055,3819.8,3819.5,0.7699]
[1753098101305,0.02613849,3819.7,3819.5,0.7699]
[1753098101477,0.02613849,3819.7,3819.6,0.466]
[1753098101662,0.02813849,3819.8,3819.6,0.466]
[1753098101863,0.02813849,3819.8,3819.7,0.466]
[1753098102462,0.02813849,3819.8,3819.1,3.38360888]
[1753098102661,2.64613484,3819.8,3819.5,0.466]
[1753098102977,2.64607804,3819.8,3819.6,0.466]
[1753098103665,0.02813849,3819.8,3819.6,0.466]
[1753098103992,0.02813849,3819.8,3819.7,0.466]
[1753098106612,2.6460766,3819.8,3819.7,0.466]
[1753098106825,2.61800664,3819.7,3819.1,0.7652]
[1753098107119,7.58961468,3819.6,3818.8,0.001]
[1753098107275,2.61834205,3819.3,3818.8,0.001]
[1753098107483,4.21013849,3819.2,3818.8,0.4694]
[1753098107807,4.21013849,3819.2,3818.9,0.4684]
[1753098107990,4.184,3819.5,3819.1,2.61837215]
[1753098108193,4.21013849,3819.7,3819.2,2.61833891]
[1753098108376,0.02613849,3819.7,3819.2,2.61833891]
[1753098108577,0.02613849,3819.7,3819.3,0.4684]
[1753098108818,4.21013849,3819.7,3819.5,0.7973]
[1753098109220,0.02613849,3819.7,3819.6,0.4684]
[1753098109522,4.184,3819.7,3819.6,0.4684]
[1753098109829,0.02813849,3819.8,3819.7,2.61800664]
[1753098110148,4.21213849,3819.8,3819.7,0.4684]
[1753098110325,4.21113849,3819.8,3819.7,0.4684]
[1753098110900,4.21113849,3819.8,3819.5,0.7973]
[1753098111223,4.21113849,3819.8,3819.5,3.88382907]
[1753098111596,4.21113849,3819.8,3819.5,3.41542907]
[1753098111799,4.21113849,3819.8,3819.6,0.4684]
[1753098112278,4.21113849,3819.8,3819.6,3.08647257]
[1753098112488,4.21113849,3819.8,3819.1,0.001]
[1753098112829,6.82912731,3819.8,3819.1,0.001]
[1753098113125,6.80298882,3819.8,3819.1,0.001]
[1753098113320,0.02613849,3819.7,3819.1,0.001]
[1753098113632,2.6441686,3819.7,3819.1,0.001]
[1753098113811,0.02613849,3819.7,3819.1,0.001]
[1753098114348,14.52613849,3819.7,3819.1,0.001]
[1753098114562,14.5,3819.7,3819.1,0.001]
[1753098114842,0.02613849,3819.6,3819.1,2.61938451]
[1753098115048,4.182,3819.5,3819.1,0.4694]
[1753098115200,0.02613849,3819.4,3819.1,0.4694]
[1753098115402,0.02613849,3819.4,3819.2,0.4684]
[1753098115716,4.182,3819.3,3819.2,3.08674939]
[1753098115933,0.02613849,3819.6,3819.4,2.61816586]
[1753098116103,4.182,3819.5,3819.4,2.61816586]
[1753098116304,0.02613849,3819.6,3819.4,2.61816586]
[1753098116305,4.182,3819.6,3819.4,2.61816586]
[1753098116735,0.02613849,3819.5,3819.4,2.61816586]
[1753098117043,0.02613849,3819.5,3819.3,2.61824446]
[1753098118338,0.02613849,3819.5,3819.2,2.61833412]
[1753098118639,0.02613849,3819.5,3819.1,0.001]
[1753098118845,0.02613849,3819.5,3819.4,2.61821228]
[1753098119043,4.181,3819.5,3819.4,0.4684]
[1753098119920,4.181,3819.5,3819.3,2.6182512]
[1753098120645,4.181,3819.5,3819.4,2.61821228]
[1753098121141,4.181,3819.5,3819.3,3.08666797]
[1753098121361,4.18,3819.4,3819.3,0.4684]
[1753098121522,4.18,3819.4,3819.1,0.001]
[1753098121726,4.18,3819.4,3819.2,2.61834354]
[1753098122058,4.18,3819.4,3819.1,0.4694]
[1753098122360,0.02613849,3819.3,3819.2,0.4684]
[1753098122514,4.20613849,3819.4,3819.2,3.08674939]
[1753098122717,4.18,3819.4,3819.1,0.001]
[1753098123016,0.02613849,3819.3,3819.1,0.4694]
[1753098123426,4.20613849,3819.3,3819.1,0.4694]
[1753098123611,4.20613849,3819.3,3819.2,2.61834939]
[1753098123814,4.20613849,3819.3,3819.1,0.4694]
[1753098124651,4.20613849,3819.3,3819.1,3.08780955]
[1753098125047,4.20613849,3819.3,3819.2,2.61834939]
[1753098125355,4.20613849,3819.3,3819.1,3.08780519]
[1753098125916,0.02613849,3819.3,3819.2,2.61834939]
[1753098126455,0.02613849,3819.3,3819.1,0.4694]
[1753098126857,0.02613849,3819.3,3819.1,3.08781333]
[1753098127155,0.02613849,3819.3,3819.1,0.4694]
[1753098127853,0.02613849,3819.3,3819.1,0.001]
[1753098128156,0.02613849,3819.3,3819.1,2.61941397]
[1753098128363,0.02613849,3819.3,3819.1,0.001]
[1753098128713,0.02613849,3819.3,3819.1,0.4694]
[1753098129128,0.02613849,3819.3,3819.1,0.001]
[1753098134262,4.20513849,3819.4,3819.1,0.001]
[1753098135682,4.20513849,3819.4,3819.1,2.6194173]
[1753098135882,4.20513849,3819.4,3819.1,0.001]
[1753098136784,4.20513849,3819.4,3819.1,2.61941789]
[1753098136946,4.20513849,3819.4,3819.1,0.001]
[1753098139098,0.7771,3819.3,3819.1,0.001]
[1753098139256,0.02613849,3819.2,3819.1,0.001]
[1753098139454,0.02613849,3819.3,3819.1,0.001]
[1753098139690,4.20513849,3819.4,3819.1,2.61941106]
[1753098139991,4.20513849,3819.4,3819.1,0.001]
[1753098140770,4.20513849,3819.4,3819.1,0.4413]
[1753098141097,4.20513849,3819.4,3819.1,0.001]
[1753098142071,6.82337546,3819.4,3819.1,0.001]
[1753098142274,6.79723697,3819.4,3819.1,0.001]
[1753098142474,2.64447626,3819.3,3819.1,0.001]
[1753098142861,0.02613849,3819.3,3819.1,0.001]
[1753098143200,4.174,3819.2,3819.1,0.001]
[1753098143694,4.20013849,3819.2,3819.1,0.001]
[1753098144062,0.02613849,3819.4,3819.1,0.001]
[1753098144262,4.173,3819.3,3819.1,0.4413]
[1753098144697,4.173,3819.3,3819.2,0.4403]
[1753098144908,2.61834939,3819.2,3819.1,0.001]
[1753098145111,2.64448788,3819.2,3819.1,0.001]
[1753098145401,9.8405812,3819.2,3819.1,0.001]
[1753098145695,15.87444271,3819.2,3819.1,0.001]
[1753098145896,16.42444271,3819.2,3819.1,0.001]
[1753098146100,30.92444271,3819.2,3819.1,0.001]
[1753098147404,6.43175508,3818.9,3818.8,0.001]
[1753098147608,14.23989357,3818.9,3818.3,0.001]
[1753098147783,9.35609128,3818.4,3818.3,0.001]
[1753098147971,28.02809128,3818.4,3818.3,0.001]
[1753098148173,29.22412691,3818.4,3818.3,0.001]
[1753098148374,35.28412691,3818.4,3818.3,0.001]
[1753098148905,34.53589128,3818.4,3818.3,0.001]
[1753098149375,34.53589128,3818.4,3817.5,0.4413]
[1753098149376,2.61944677,3817.6,3817.5,0.001]
[1753098149580,13.49344009,3817.6,3817.5,0.001]
[1753098150411,13.94124009,3817.6,3817.5,0.001]
[1753098151679,28.44124009,3817.6,3817.5,0.001]
[1753098153390,28.99124009,3817.6,3817.5,0.001]
[1753098153588,0.002,3816.9,3812.2,0.8141]
[1753098153811,0.002,3816.9,3811.2,10.71720392]
[1753098153812,0.7748,3814.6,3812.9,0.8141]
[1753098153992,4.19713849,3814.5,3813.0,0.4403]
[1753098154183,0.02613849,3814.5,3813.0,0.4403]
[1753098154387,0.02613849,3814.5,3813.3,3.0]
[1753098154709,0.02613849,3814.7,3813.5,0.8261]
[1753098154871,0.02613849,3814.7,3813.6,1.22191739]
[1753098155078,0.02613849,3815.1,3813.6,1.22191739]
[1753098155277,0.02613849,3815.1,3813.5,0.8261]
[1753098155278,0.02613849,3815.1,3813.7,0.4403]
[1753098155500,0.02613849,3815.1,3814.8,2.62130317]
[1753098155678,4.974,3815.9,3814.9,0.4403]
[1753098155888,4.19713849,3815.8,3815.1,2.62115398]
[1753098156087,4.19713849,3815.8,3815.2,0.4403]
[1753098156088,14.5,3815.7,3815.2,0.4403]
[1753098156289,0.02613849,3815.6,3815.0,2.62123087]
[1753098156499,0.02613849,3815.6,3815.2,2.62109366]
[1753098156680,0.02613849,3815.6,3815.1,2.62114733]
[1753098156681,5.95013181,3815.6,3815.1,2.62114733]
[1753098157101,18.672,3815.5,3815.1,2.62114733]
[1753098157307,0.02613849,3815.4,3815.2,2.6210867]
[1753098157510,0.02613849,3815.4,3815.3,3.06132586]
[1753098157712,4.172,3815.5,3815.3,3.06132586]
[1753098157713,4.172,3815.5,3815.4,2.62095717]
[1753098157880,14.52613849,3816.2,3815.4,0.4403]
[1753098158216,14.52613849,3816.2,3815.7,2.62072925]
[1753098158217,14.5,3816.2,3815.7,2.62072925]
[1753098158374,0.02613849,3816.1,3815.6,2.62081014]
[1753098158581,0.02613849,3816.1,3815.4,0.4403]
[1753098158775,0.02613849,3816.1,3815.4,3.06119094]
[1753098159045,17.14662002,3816.1,3815.4,0.4403]
[1753098159242,4.172,3816.0,3815.4,0.4403]
[1753098159420,0.02613849,3815.9,3815.4,0.4403]
[1753098159920,0.02613849,3815.9,3815.2,2.62109022]
[1753098160116,0.02613849,3815.9,3815.3,2.62100861]
[1753098160319,2.64679351,3815.9,3815.1,2.62109502]
[1753098160849,2.62068242,3815.8,3814.9,0.4403]
[1753098161049,0.02613849,3815.7,3815.0,2.62123139]
[1753098161610,2.6468926,3815.7,3815.0,2.62123139]
[1753098161905,0.8291,3815.4,3814.5,0.7959]
[1753098162111,2.62125,3815.0,3814.2,3.0620612]
[1753098162357,0.02613849,3814.9,3814.2,3.0620612]
[1753098162655,2.64749092,3814.9,3814.2,0.4403]
[1753098162866,0.02613849,3814.9,3814.3,2.62169033]
[1753098163038,4.172,3814.8,3814.1,0.7959]
[1753098163347,0.02613849,3814.7,3814.1,3.41774925]
[1753098163554,0.02613849,3814.7,3814.1,0.7959]
[1753098163729,0.02613849,3814.7,3814.0,2.62187277]
[1753098163932,0.02613849,3814.7,3813.6,3.06243918]
[1753098163933,2.62162883,3814.5,3813.6,3.06243918]
[1753098164249,6.81985067,3814.4,3813.6,0.4403]
[1753098164450,4.172,3814.4,3813.6,3.0624782]
[1753098164669,2.62185336,3814.1,3813.6,0.4403]
[1753098164803,4.19813849,3814.0,3813.2,0.4403]
[1753098165008,2.62199839,3813.9,3813.2,0.4403]
[1753098165222,0.02613849,3813.8,3813.2,0.4403]
[1753098165447,4.172,3813.9,3813.2,0.4403]
[1753098165613,4.172,3813.9,3813.5,2.6222044]
[1753098165816,4.172,3813.9,3813.6,0.4403]
[1753098166146,4.172,3813.9,3813.1,2.62253809]
[1753098166307,0.02613849,3813.8,3813.3,2.62235533]
[1753098166508,0.02613849,3813.8,3813.4,2.62232531]
[1753098166733,0.02613849,3813.8,3813.4,0.4706]
[1753098166906,0.02613849,3813.8,3813.5,3.09283612]
[1753098167120,4.173,3813.9,3813.5,3.09284811]
[1753098167334,0.02613849,3813.8,3812.8,3.8217]
[1753098167535,6.79512549,3813.7,3813.1,2.62253729]
[1753098167850,0.02613849,3813.6,3813.0,2.62258373]
[1753098168050,0.02613849,3813.6,3812.9,0.4706]
[1753098168416,0.02613849,3813.6,3812.9,3.09327469]
[1753098168726,0.02613849,3813.6,3813.1,2.62250979]
[1753098168922,0.02613849,3813.6,3812.8,0.8217]
[1753098169123,0.81423849,3814.1,3813.1,2.62253809]
[1753098169329,4.19913849,3814.4,3814.0,2.62191924]
[1753098169527,4.19913849,3814.4,3814.1,0.4706]
[1753098169822,4.173,3814.6,3814.3,2.6216458]
[1753098170061,4.173,3814.6,3813.9,0.02621987]
[1753098170224,0.02613849,3814.5,3813.8,0.4706]
[1753098170429,0.02613849,3814.5,3813.9,2.6219289]
[1753098170759,0.02613849,3814.5,3813.8,3.09259767]
[1753098171053,0.02613849,3814.5,3813.8,0.4706]
[1753098171223,0.02613849,3814.5,3813.2,3.8112]
[1753098171224,4.19913849,3814.5,3814.1,2.62184175]
[1753098171427,4.19913849,3814.5,3814.2,0.4706]
[1753098171735,0.02613849,3814.5,3814.3,2.62171048]
[1753098171938,0.02613849,3814.5,3814.2,2.62175808]
[1753098172148,4.173,3814.7,3814.4,0.4706]
[1753098172460,4.173,3814.7,3814.5,2.62157556]
[1753098172613,0.02613849,3814.8,3814.7,2.62143812]
[1753098172814,4.173,3815.3,3814.9,2.62124781]
[1753098173016,0.02613849,3815.2,3815.0,0.4706]
[1753098173360,0.02613849,3815.4,3815.1,0.4706]
[1753098173542,0.02613849,3815.4,3815.0,2.62120123]
[1753098173739,0.02613849,3815.6,3815.2,0.4706]
[1753098173942,0.7586,3816.1,3815.3,2.62101965]
[1753098174156,4.19913849,3816.0,3815.6,2.62077853]
[1753098174357,4.19913849,3816.0,3815.5,2.6208753]
[1753098174562,4.19913849,3816.0,3815.7,0.4706]
[1753098174874,4.19913849,3816.3,3815.1,0.02621163]
[1753098175072,4.173,3816.2,3815.8,0.4706]
[1753098175290,0.02613849,3816.1,3815.8,2.62067428]
[1753098175472,0.02613849,3816.1,3815.9,0.4706]
[1753098175643,0.02613849,3816.1,3815.9,3.09120348]
[1753098175991,0.02613849,3816.1,3815.9,0.4706]
[1753098176481,0.02613849,3816.1,3815.2,0.41992116]
[1753098176630,4.172,3816.3,3816.1,2.62047524]
[1753098176977,0.7749,3816.5,3816.1,2.62047524]
[1753098176978,0.02613849,3816.5,3816.1,0.4706]
[1753098177277,2.62031909,3816.4,3815.7,3.09133614]
[1753098177427,0.02613849,3816.3,3815.8,2.62063449]
[1753098177636,0.02613849,3816.3,3815.6,1.2813]
[1753098177833,2.64649071,3816.3,3815.6,3.90210523]
[1753098178537,0.02613849,3816.3,3815.6,1.2813]
[1753098178836,0.02613849,3816.3,3815.8,2.62068242]
[1753098179233,0.02613849,3816.5,3816.0,2.62049691]
[1753098179432,0.02613849,3816.5,3816.1,0.4706]
[1753098179978,0.02613849,3816.5,3816.4,2.62027041]
[1753098180780,0.02613849,3816.7,3815.8,0.4706]
[1753098180935,4.171,3816.6,3815.8,0.4706]
[1753098181135,0.02613849,3816.5,3815.8,0.4706]
[1753098181583,0.02613849,3816.5,3815.3,0.8236]
[1753098181899,2.62058536,3816.0,3815.3,3.44460628]
[1753098182056,4.19713849,3815.9,3815.3,3.44460628]
[1753098182258,4.19713849,3815.9,3815.4,2.62095654]
[1753098182988,4.19713849,3815.9,3815.5,0.4706]
[1753098183295,4.171,3816.0,3815.8,2.62068242]
[1753098183589,0.02613849,3815.9,3815.6,0.4706]
[1753098183993,0.02613849,3815.9,3815.3,3.44461261]
[1753098184496,2.62064132,3815.9,3815.3,0.8236]
[1753098184669,2.62064132,3815.9,3815.2,0.4706]
[1753098184670,0.02613849,3815.8,3815.2,0.4706]
[1753098184871,0.02613849,3815.8,3815.3,2.62101549]
[1753098185077,2.64687496,3815.8,3815.2,0.4706]
[1753098185252,0.02613849,3815.8,3815.2,3.09169309]
[1753098185873,0.02613849,3815.8,3815.2,0.4706]
[1753098186193,2.62068242,3815.8,3815.2,0.4706]
[1753098186374,0.02613849,3815.7,3815.2,3.09168616]
[1753098186576,0.02613849,3815.7,3815.3,0.4706]
[1753098186962,2.6469067,3815.7,3815.3,0.4706]
[1753098187284,0.8099,3815.4,3814.4,0.8109]
[1753098187487,0.8099,3815.4,3814.1,0.34460727]
[1753098187488,2.62121178,3815.1,3814.2,2.62172145]
[1753098187809,2.62150166,3814.7,3814.1,0.4706]
[1753098187961,0.02613849,3814.6,3814.1,0.4706]
[1753098188163,4.171,3814.5,3814.1,0.4706]
[1753098188399,0.02613849,3814.4,3814.2,0.4706]
[1753098188697,4.171,3814.5,3814.3,0.4706]
[1753098188875,0.02613849,3814.4,3814.0,3.09350559]
[1753098189080,4.171,3814.5,3814.1,0.4706]
[1753098189284,4.171,3814.5,3814.1,2.6218435]
[1753098189473,4.171,3814.5,3814.2,0.4706]
[1753098190008,4.171,3814.5,3814.3,3.09228843]
[1753098190207,4.171,3814.6,3814.4,3.09223314]
[1753098190411,0.02613849,3815.0,3814.4,0.4706]
[1753098190711,4.171,3814.9,3814.8,2.6213694]
[1753098190880,4.171,3814.9,3814.7,2.62142217]
[1753098191283,4.171,3815.1,3814.7,0.7649]
[1753098191507,4.171,3815.1,3814.9,2.6212485]
[1753098191671,0.02613849,3815.5,3814.2,0.4706]
[1753098191875,4.171,3815.4,3814.3,1.2675]
[1753098192078,0.02613849,3815.3,3814.8,2.62130745]
[1753098192616,0.02613849,3815.3,3814.9,3.09183427]
[1753098192922,4.171,3815.4,3814.9,0.4706]
[1753098193076,4.171,3815.4,3815.2,2.62105966]
[1753098193409,0.02613849,3815.6,3815.2,3.09165966]
[1753098193601,4.17,3815.5,3815.2,3.09165966]
[1753098193914,0.8217,3814.8,3814.4,0.4706]
[1753098194120,6.79145818,3814.7,3814.5,0.4706]
[1753098194275,2.64764533,3814.6,3814.0,0.4716]
[1753098194472,2.6218505,3814.1,3814.0,0.001]
[1753098194715,2.62179188,3814.2,3814.0,0.001]
[1753098195016,2.64798899,3814.1,3814.0,0.001]
[1753098195335,0.02613849,3814.1,3814.0,0.001]
[1753098195516,2.64792145,3814.2,3814.0,0.001]
[1753098195682,2.6218505,3814.1,3814.0,0.001]
[1753098195880,2.64794483,3814.2,3814.0,0.001]
[1753098196101,2.64758055,3814.7,3814.0,0.4716]
[1753098196277,6.79252766,3814.6,3814.0,0.4716]
[1753098196479,0.02613849,3814.5,3814.0,0.001]
[1753098196709,6.79164429,3814.4,3814.0,0.001]
[1753098197105,6.79164429,3814.4,3814.0,0.4631]
[1753098197300,6.79164429,3814.4,3814.0,0.001]
[1753098197301,2.64786216,3814.3,3814.0,0.001]
[1753098197508,0.02613849,3814.3,3814.2,2.62178176]
[1753098197743,4.17,3814.7,3814.2,1.55230599]
[1753098197912,4.17,3814.7,3814.5,2.62155962]
[1753098198307,0.7678,3815.3,3814.6,0.4621]
[1753098198637,4.17,3815.2,3815.0,2.62116358]
[1753098198818,4.17,3815.2,3814.9,2.62128613]
[1753098199013,0.02613849,3815.4,3815.1,0.4621]
[1753098199218,4.17,3815.2,3815.0,2.62122514]
[1753098199619,4.17,3815.2,3814.8,0.4621]
[1753098199620,4.17,3815.2,3814.9,2.62123724]
[1753098199847,3.43959345,3816.0,3815.3,2.62101667]
[1753098200045,0.02613849,3815.9,3815.0,1.2761]
[1753098200377,4.17,3815.8,3815.3,0.4621]
[1753098200509,0.02613849,3815.7,3815.1,2.62115665]
[1753098200708,0.02613849,3815.7,3815.2,2.62108766]
[1753098201117,0.02613849,3815.7,3815.3,2.62097733]
[1753098201316,0.02613849,3815.7,3815.4,2.62095118]
[1753098201517,0.02613849,3815.7,3814.8,0.8173]
[1753098201518,0.02613849,3815.9,3815.7,2.6207511]
[1753098201730,0.02613849,3815.9,3815.8,2.62068242]
[1753098201942,4.17,3815.9,3815.8,3.08278242]
[1753098202150,4.17,3815.9,3815.8,2.62068242]
[1753098202317,0.80523849,3816.4,3815.9,2.62057839]
[1753098202518,4.17,3816.3,3815.9,2.62057839]
[1753098202828,0.02613849,3816.2,3816.0,2.62047942]
[1753098203004,0.02613849,3816.3,3816.0,0.4621]
[1753098203210,4.17,3816.2,3816.1,2.62047075]
[1753098203840,4.17,3816.2,3816.1,2.6204764]